[Event "Late-Titled-Tuesday-Blitz-January-30-2024"]
[Site "Chess.com"]
[Date "2024.01.30"]
[Round "1"]
[White "PapaieDudu"]
[Black "IlanSchnaider"]
[Result "0-1"]
[WhiteElo "2375"]
[BlackElo "2674"]
[TimeControl "180+1"]
[EndTime "14:07:49 PST"]
[Termination "IlanSchnaider won by checkmate"]

1. e4 {[%clk 0:02:57.6]} 1... c5 {[%clk 0:02:59.9]} 2. Nf3 {[%clk 0:02:57.3]}
2... d6 {[%clk 0:03:00.4]} 3. d4 {[%clk 0:02:55.7]} 3... cxd4 {[%clk 0:03:01.3]}
4. Nxd4 {[%clk 0:02:55.4]} 4... Nf6 {[%clk 0:03:02]} 5. Nc3 {[%clk 0:02:55.1]}
5... a6 {[%clk 0:03:02.7]} 6. f3 {[%clk 0:02:52.1]} 6... e5 {[%clk 0:03:02.6]}
7. Nb3 {[%clk 0:02:51.8]} 7... Be7 {[%clk 0:03:02.5]} 8. Be3 {[%clk 0:02:51.8]}
8... Be6 {[%clk 0:03:03.2]} 9. Qd2 {[%clk 0:02:51.8]} 9... h5 {[%clk 0:03:03.9]}
10. O-O-O {[%clk 0:02:51.5]} 10... Nbd7 {[%clk 0:03:03.6]} 11. Kb1 {[%clk
0:02:50.7]} 11... Rc8 {[%clk 0:03:03.2]} 12. Nd5 {[%clk 0:02:50]} 12... Nxd5
{[%clk 0:02:59.2]} 13. exd5 {[%clk 0:02:50.3]} 13... Bf5 {[%clk 0:02:59.8]} 14.
Bd3 {[%clk 0:02:50.3]} 14... Bxd3 {[%clk 0:03:00.2]} 15. Qxd3 {[%clk 0:02:50.7]}
15... Bg5 {[%clk 0:02:58.6]} 16. Bf2 {[%clk 0:02:42.5]} 16... O-O {[%clk
0:02:45.7]} 17. h4 {[%clk 0:02:40.9]} 17... Bh6 {[%clk 0:02:42.2]} 18. g4 {[%clk
0:02:40.1]} 18... hxg4 {[%clk 0:02:42.1]} 19. fxg4 {[%clk 0:02:40.3]} 19... Bf4
{[%clk 0:02:32.8]} 20. h5 {[%clk 0:02:22.3]} 20... Qg5 {[%clk 0:02:21.3]} 21.
Bh4 {[%clk 0:02:12.8]} 21... Qh6 {[%clk 0:02:00.8]} 22. Qf5 {[%clk 0:02:10]}
22... Nc5 {[%clk 0:01:51]} 23. Be7 {[%clk 0:01:53.2]} 23... Rfe8 {[%clk
0:00:56.8]} 24. g5 {[%clk 0:01:49.4]} 24... Qh8 {[%clk 0:00:43.2]} 25. g6 {[%clk
0:01:34.1]} 25... f6 {[%clk 0:00:10]} 26. Nxc5 {[%clk 0:01:31.3]} 26... Qh6
{[%clk 0:00:09.6]} 27. Bxd6 {[%clk 0:01:21.4]} 27... Be3 {[%clk 0:00:05]} 28.
Ne6 {[%clk 0:01:15]} 28... Kh8 {[%clk 0:00:03.4]} 29. Nxg7 {[%clk 0:01:00]}
29... Kxg7 {[%clk 0:00:01.4]} 30. Qd7+ {[%clk 0:00:59.6]} 30... Kh8 {[%clk
0:00:01.4]} 31. Rdf1 {[%clk 0:00:32.1]} 31... Bg5 {[%clk 0:00:01.9]} 32. Be7
{[%clk 0:00:23.1]} 32... Qg7 {[%clk 0:00:01.9]} 33. d6 {[%clk 0:00:22.6]} 33...
Rcd8 {[%clk 0:00:01.5]} 34. Qe6 {[%clk 0:00:20.6]} 34... Rb8 {[%clk 0:00:01.9]}
35. Qd5 {[%clk 0:00:16.7]} 35... b5 {[%clk 0:00:02.4]} 36. h6 {[%clk 0:00:17.2]}
36... Qxg6 {[%clk 0:00:02.2]} 37. d7 {[%clk 0:00:13]} 37... Rxe7 {[%clk
0:00:02.8]} 38. d8=Q+ {[%clk 0:00:13.2]} 38... Rxd8 {[%clk 0:00:03.5]} 39. Qxd8+
{[%clk 0:00:14.1]} 39... Re8 {[%clk 0:00:04.4]} 40. Qb6 {[%clk 0:00:11.3]} 40...
e4 {[%clk 0:00:04.6]} 41. Re1 {[%clk 0:00:09.6]} 41... Bd2 {[%clk 0:00:03.9]}
42. Reg1 {[%clk 0:00:09.2]} 42... Bg5 {[%clk 0:00:03.2]} 43. Qc6 {[%clk
0:00:09]} 43... e3 {[%clk 0:00:02.8]} 44. Rxg5 {[%clk 0:00:07.7]} 44... e2
{[%clk 0:00:02.2]} 45. Rgg1 {[%clk 0:00:06.3]} 45... Qxg1+ {[%clk 0:00:02.1]}
46. Rxg1 {[%clk 0:00:06.5]} 46... e1=Q+ {[%clk 0:00:03]} 47. Rxe1 {[%clk
0:00:07.1]} 47... Rxe1# {[%clk 0:00:03.9]} 0-1

[Event "Late-Titled-Tuesday-Blitz-January-30-2024"]
[Site "Chess.com"]
[Date "2024.01.30"]
[Round "1"]
[White "sjoerd893"]
[Black "Harsha_Bharathakoti"]
[Result "0-1"]
[WhiteElo "2506"]
[BlackElo "2921"]
[TimeControl "180+1"]
[EndTime "14:07:51 PST"]
[Termination "Harsha_Bharathakoti won on time"]

1. e4 {[%clk 0:03:00.9]} 1... g6 {[%clk 0:02:59.5]} 2. d4 {[%clk 0:02:57.6]}
2... Bg7 {[%clk 0:02:56.9]} 3. Nc3 {[%clk 0:02:57.1]} 3... d6 {[%clk 0:02:55.9]}
4. Be3 {[%clk 0:02:57.1]} 4... a6 {[%clk 0:02:54.3]} 5. f3 {[%clk 0:02:56.9]}
5... b5 {[%clk 0:02:52.3]} 6. Qd2 {[%clk 0:02:56.3]} 6... b4 {[%clk 0:02:29.9]}
7. Nce2 {[%clk 0:02:52.2]} 7... a5 {[%clk 0:02:26.3]} 8. g4 {[%clk 0:02:45.1]}
8... h5 {[%clk 0:02:23.8]} 9. g5 {[%clk 0:02:41.2]} 9... Nd7 {[%clk 0:02:20.1]}
10. O-O-O {[%clk 0:02:32.7]} 10... Nb6 {[%clk 0:02:04.4]} 11. Nf4 {[%clk
0:02:32.2]} 11... e6 {[%clk 0:02:04.3]} 12. h4 {[%clk 0:02:25.6]} 12... Ne7
{[%clk 0:02:04.9]} 13. Kb1 {[%clk 0:01:58.9]} 13... Ba6 {[%clk 0:01:57]} 14.
Bxa6 {[%clk 0:01:54.9]} 14... Rxa6 {[%clk 0:01:57.9]} 15. Qd3 {[%clk 0:01:55]}
15... Ra8 {[%clk 0:01:55.2]} 16. Nge2 {[%clk 0:01:47.8]} 16... Qd7 {[%clk
0:01:55.4]} 17. d5 {[%clk 0:01:40.3]} 17... e5 {[%clk 0:01:12]} 18. Ng2 {[%clk
0:01:34]} 18... O-O {[%clk 0:01:03.2]} 19. f4 {[%clk 0:01:17.2]} 19... exf4
{[%clk 0:01:00.9]} 20. Ngxf4 {[%clk 0:01:12.5]} 20... Na4 {[%clk 0:00:47.6]} 21.
Bd4 {[%clk 0:00:57]} 21... Nc5 {[%clk 0:00:48.2]} 22. Qe3 {[%clk 0:00:54.8]}
22... Rfe8 {[%clk 0:00:47.6]} 23. Bxg7 {[%clk 0:00:45.3]} 23... Nf5 {[%clk
0:00:47.7]} 24. Qf3 {[%clk 0:00:14.9]} 24... Nxg7 {[%clk 0:00:47.1]} 25. Ng3
{[%clk 0:00:14.4]} 25... a4 {[%clk 0:00:47.6]} 26. Rhf1 {[%clk 0:00:14]} 26...
b3 {[%clk 0:00:47.8]} 27. a3 {[%clk 0:00:14]} 27... bxc2+ {[%clk 0:00:48]} 28.
Kxc2 {[%clk 0:00:14.9]} 28... Rab8 {[%clk 0:00:48.1]} 29. Nd3 {[%clk 0:00:14.1]}
29... Nb3 {[%clk 0:00:31.7]} 30. Nb4 {[%clk 0:00:13.1]} 30... Nc5 {[%clk
0:00:23.4]} 31. Nc6 {[%clk 0:00:12.8]} 31... Rb3 {[%clk 0:00:24.1]} 32. Qf4
{[%clk 0:00:11.6]} 32... Rf8 {[%clk 0:00:19.5]} 33. Ne2 {[%clk 0:00:09.5]} 33...
Qh3 {[%clk 0:00:17.9]} 34. Nc3 {[%clk 0:00:09.1]} 34... Qd7 {[%clk 0:00:05.8]}
35. Qf6 {[%clk 0:00:08.1]} 35... Kh7 {[%clk 0:00:06.3]} 36. Rf2 {[%clk
0:00:04.9]} 36... Qg4 {[%clk 0:00:06.7]} 37. Kc1 {[%clk 0:00:04.7]} 37... Qxh4
{[%clk 0:00:06.6]} 38. Ne7 {[%clk 0:00:04.4]} 38... Rxc3+ {[%clk 0:00:02.8]} 39.
bxc3 {[%clk 0:00:03.9]} 39... Nxe4 {[%clk 0:00:03.4]} 40. Nxg6 {[%clk
0:00:02.6]} 40... fxg6 {[%clk 0:00:04.1]} 41. Qxf8 {[%clk 0:00:02.4]} 41... Nxf2
{[%clk 0:00:04.6]} 42. Rd2 {[%clk 0:00:02.1]} 42... Ne4 {[%clk 0:00:04.5]} 43.
Re2 {[%clk 0:00:02.5]} 43... Qxg5+ {[%clk 0:00:02.9]} 44. Kc2 {[%clk 0:00:02.9]}
44... Qxd5 {[%clk 0:00:03.3]} 45. Qe7 {[%clk 0:00:02.3]} 45... Qa2+ {[%clk
0:00:03]} 46. Kd3 {[%clk 0:00:02.5]} 46... Nc5+ {[%clk 0:00:03.5]} 47. Ke3
{[%clk 0:00:01.9]} 47... Qc4 {[%clk 0:00:03.3]} 48. Kf3 {[%clk 0:00:01.8]} 48...
Qxc3+ {[%clk 0:00:03.6]} 49. Re3 {[%clk 0:00:01.8]} 49... Qd4 {[%clk 0:00:04.1]}
0-1

[Event "Late-Titled-Tuesday-Blitz-January-30-2024"]
[Site "Chess.com"]
[Date "2024.01.30"]
[Round "1"]
[White "only_strong_moves"]
[Black "Oleksandr_Bortnyk"]
[Result "0-1"]
[WhiteElo "2538"]
[BlackElo "3100"]
[TimeControl "180+1"]
[EndTime "14:07:53 PST"]
[Termination "Oleksandr_Bortnyk won by resignation"]

1. d4 {[%clk 0:03:00]} 1... Nf6 {[%clk 0:02:50.4]} 2. c4 {[%clk 0:02:59.9]} 2...
b6 {[%clk 0:02:50.7]} 3. Nf3 {[%clk 0:02:59.3]} 3... Bb7 {[%clk 0:02:51]} 4. g3
{[%clk 0:03:00]} 4... g6 {[%clk 0:02:51.6]} 5. Bg2 {[%clk 0:03:00]} 5... Bg7
{[%clk 0:02:52.3]} 6. O-O {[%clk 0:03:00.1]} 6... O-O {[%clk 0:02:53]} 7. Nc3
{[%clk 0:02:59.9]} 7... Ne4 {[%clk 0:02:53.1]} 8. Bd2 {[%clk 0:02:57.4]} 8...
Re8 {[%clk 0:02:49.9]} 9. Qc2 {[%clk 0:02:50.1]} 9... Nxd2 {[%clk 0:02:49.9]}
10. Qxd2 {[%clk 0:02:46.2]} 10... e6 {[%clk 0:02:49.9]} 11. Rac1 {[%clk
0:02:41.2]} 11... d6 {[%clk 0:02:47]} 12. e4 {[%clk 0:02:24.5]} 12... Nd7 {[%clk
0:02:47.1]} 13. Rfe1 {[%clk 0:02:19]} 13... a6 {[%clk 0:02:46]} 14. a3 {[%clk
0:02:17.5]} 14... Qe7 {[%clk 0:02:40.6]} 15. b4 {[%clk 0:02:15.8]} 15... c5
{[%clk 0:02:39.8]} 16. d5 {[%clk 0:02:10.9]} 16... cxb4 {[%clk 0:02:30.3]} 17.
axb4 {[%clk 0:02:11.8]} 17... Rac8 {[%clk 0:02:30.7]} 18. Bf1 {[%clk 0:02:04.2]}
18... Qf6 {[%clk 0:02:26.8]} 19. dxe6 {[%clk 0:01:07.7]} 19... fxe6 {[%clk
0:02:02.3]} 20. Qxd6 {[%clk 0:00:51.9]} 20... Rcd8 {[%clk 0:01:58.7]} 21. Qf4
{[%clk 0:00:49.3]} 21... Qxf4 {[%clk 0:01:57.8]} 22. gxf4 {[%clk 0:00:50.2]}
22... Bh6 {[%clk 0:01:57.1]} 23. Ng5 {[%clk 0:00:43]} 23... e5 {[%clk 0:01:49]}
24. c5 {[%clk 0:00:39.3]} 24... bxc5 {[%clk 0:01:38.7]} 25. Bc4+ {[%clk
0:00:34.1]} 25... Kg7 {[%clk 0:01:39.3]} 26. Ne6+ {[%clk 0:00:22.3]} 26... Rxe6
{[%clk 0:01:39.6]} 27. Bxe6 {[%clk 0:00:23.2]} 27... cxb4 {[%clk 0:01:40.5]} 28.
Nd5 {[%clk 0:00:19.3]} 28... Bxd5 {[%clk 0:01:39]} 29. exd5 {[%clk 0:00:20.2]}
29... Nf8 {[%clk 0:01:16.4]} 30. Rc7+ {[%clk 0:00:20.2]} 30... Kh8 {[%clk
0:01:16.7]} 31. fxe5 {[%clk 0:00:18.5]} 31... Bd2 {[%clk 0:01:09.6]} 32. Rd1
{[%clk 0:00:14.8]} 32... Bc3 {[%clk 0:01:08.5]} 33. Rc8 {[%clk 0:00:09.2]} 33...
Nxe6 {[%clk 0:01:07.8]} 34. Rxd8+ {[%clk 0:00:07.6]} 34... Nxd8 {[%clk
0:01:08.7]} 35. e6 {[%clk 0:00:08.2]} 35... Bf6 {[%clk 0:01:05]} 36. Rc1 {[%clk
0:00:05.1]} 36... b3 {[%clk 0:01:02.6]} 37. Rc8 {[%clk 0:00:03.7]} 37... b2
{[%clk 0:01:02.7]} 38. Rb8 {[%clk 0:00:03.7]} 38... Kg7 {[%clk 0:01:03.5]} 39.
e7 {[%clk 0:00:02.8]} 39... Bxe7 {[%clk 0:01:03.5]} 40. Rxb2 {[%clk 0:00:02.9]}
40... a5 {[%clk 0:01:03.5]} 41. Ra2 {[%clk 0:00:03.5]} 41... Bb4 {[%clk
0:01:03.5]} 42. Re2 {[%clk 0:00:03.9]} 42... Kf6 {[%clk 0:01:03.2]} 43. Re4
{[%clk 0:00:04.3]} 43... Nf7 {[%clk 0:01:00.4]} 44. Re6+ {[%clk 0:00:04.1]}
44... Kf5 {[%clk 0:01:00.9]} 45. Ra6 {[%clk 0:00:02.9]} 45... Nd6 {[%clk
0:01:00.1]} 46. Kg2 {[%clk 0:00:03.3]} 46... h5 {[%clk 0:01:00.5]} 47. Kf3
{[%clk 0:00:03.3]} 47... Ke5 {[%clk 0:01:00.9]} 48. Ke3 {[%clk 0:00:02.6]} 48...
Kxd5 {[%clk 0:01:01.2]} 49. Kf4 {[%clk 0:00:03.3]} 49... Bd2+ {[%clk 0:01:01.5]}
50. Kf3 {[%clk 0:00:02.9]} 50... g5 {[%clk 0:01:00.8]} 51. h3 {[%clk 0:00:02.4]}
51... Kc5 {[%clk 0:00:59.4]} 52. Ke2 {[%clk 0:00:03]} 52... Bb4 {[%clk
0:00:59.3]} 53. Kd3 {[%clk 0:00:03]} 53... Kb5 {[%clk 0:00:59.6]} 54. Ra8 {[%clk
0:00:03.9]} 54... a4 {[%clk 0:01:00.5]} 55. Kd4 {[%clk 0:00:03.7]} 55... a3
{[%clk 0:01:00]} 56. Ke5 {[%clk 0:00:04.1]} 56... Ba5 {[%clk 0:00:50.2]} 57.
Rb8+ {[%clk 0:00:03.7]} 57... Bb6 {[%clk 0:00:49.7]} 58. Ra8 {[%clk 0:00:03.5]}
58... Nc4+ {[%clk 0:00:47.9]} 59. Kf5 {[%clk 0:00:03.8]} 59... Na5 {[%clk
0:00:48.8]} 60. Re8 {[%clk 0:00:03.9]} 60... a2 {[%clk 0:00:47.8]} 61. Re1
{[%clk 0:00:04.4]} 61... Nb3 {[%clk 0:00:47.9]} 62. Kxg5 {[%clk 0:00:03.5]}
62... Bxf2 {[%clk 0:00:48.2]} 63. Rd1 {[%clk 0:00:03.4]} 63... Be3+ {[%clk
0:00:48]} 64. Kxh5 {[%clk 0:00:03.8]} 64... Bc1 {[%clk 0:00:48.9]} 65. Rd5+
{[%clk 0:00:03.8]} 65... Kc4 {[%clk 0:00:49.3]} 66. Rd8 {[%clk 0:00:03.8]} 66...
a1=Q {[%clk 0:00:49.7]} 67. Rc8+ {[%clk 0:00:04.7]} 67... Kd5 {[%clk 0:00:50]}
0-1

[Event "Late-Titled-Tuesday-Blitz-January-30-2024"]
[Site "Chess.com"]
[Date "2024.01.30"]
[Round "1"]
[White "Vladimir_Zakhartsov"]
[Black "RaulPerezGuerra"]
[Result "1-0"]
[WhiteElo "2845"]
[BlackElo "2475"]
[TimeControl "180+1"]
[EndTime "14:08:01 PST"]
[Termination "Vladimir_Zakhartsov won by resignation"]

1. e4 {[%clk 0:02:56]} 1... b6 {[%clk 0:02:58]} 2. d4 {[%clk 0:02:54.3]} 2...
Bb7 {[%clk 0:02:58.9]} 3. Bd3 {[%clk 0:02:53.1]} 3... e6 {[%clk 0:02:56]} 4. Nf3
{[%clk 0:02:51]} 4... Nf6 {[%clk 0:02:56.5]} 5. Qe2 {[%clk 0:02:49.6]} 5... d5
{[%clk 0:02:55]} 6. e5 {[%clk 0:02:49.3]} 6... Ne4 {[%clk 0:02:55.5]} 7. Nbd2
{[%clk 0:02:45.8]} 7... Nxd2 {[%clk 0:02:54.2]} 8. Bxd2 {[%clk 0:02:46.7]} 8...
c5 {[%clk 0:02:54.6]} 9. c3 {[%clk 0:02:46.9]} 9... Nc6 {[%clk 0:02:52.8]} 10.
O-O {[%clk 0:02:44.6]} 10... Be7 {[%clk 0:02:49]} 11. g3 {[%clk 0:02:44.7]}
11... O-O {[%clk 0:02:47.4]} 12. h4 {[%clk 0:02:45.1]} 12... Rc8 {[%clk
0:02:42.7]} 13. Be3 {[%clk 0:02:44.4]} 13... cxd4 {[%clk 0:02:42.9]} 14. cxd4
{[%clk 0:02:44.7]} 14... Nb4 {[%clk 0:02:43.5]} 15. Bg5 {[%clk 0:02:25.4]} 15...
h6 {[%clk 0:02:39.2]} 16. Bxe7 {[%clk 0:02:22.3]} 16... Qxe7 {[%clk 0:02:40.1]}
17. a3 {[%clk 0:02:21]} 17... Nxd3 {[%clk 0:02:39.7]} 18. Qxd3 {[%clk
0:02:21.7]} 18... Qc7 {[%clk 0:02:39.3]} 19. Rfd1 {[%clk 0:02:13]} 19... Qc2
{[%clk 0:02:37.8]} 20. Qd2 {[%clk 0:02:06.5]} 20... Ba6 {[%clk 0:02:34.4]} 21.
Ne1 {[%clk 0:02:05.1]} 21... Qxd2 {[%clk 0:02:27]} 22. Rxd2 {[%clk 0:02:06]}
22... Rc4 {[%clk 0:02:26.8]} 23. Nc2 {[%clk 0:01:59.4]} 23... Rfc8 {[%clk
0:02:26.2]} 24. Ne3 {[%clk 0:01:59.8]} 24... R4c6 {[%clk 0:02:22.6]} 25. Kg2
{[%clk 0:01:59.5]} 25... Rc1 {[%clk 0:02:20.3]} 26. Rd1 {[%clk 0:01:58.3]} 26...
Rxa1 {[%clk 0:02:18.4]} 27. Rxa1 {[%clk 0:01:58.2]} 27... Bd3 {[%clk 0:02:14.7]}
28. f3 {[%clk 0:01:55.7]} 28... Kf8 {[%clk 0:02:09]} 29. Kf2 {[%clk 0:01:53]}
29... Ke7 {[%clk 0:02:09.3]} 30. Ke1 {[%clk 0:01:49.8]} 30... f6 {[%clk
0:02:08]} 31. Kd2 {[%clk 0:01:48.5]} 31... Ba6 {[%clk 0:02:04.1]} 32. f4 {[%clk
0:01:32.6]} 32... fxe5 {[%clk 0:02:03.9]} 33. dxe5 {[%clk 0:01:32.9]} 33... d4
{[%clk 0:01:57.7]} 34. Nc2 {[%clk 0:01:27.3]} 34... Rc4 {[%clk 0:01:53.9]} 35.
Re1 {[%clk 0:01:14.4]} 35... d3 {[%clk 0:01:40.4]} 36. Nb4 {[%clk 0:01:08.7]}
36... Bb5 {[%clk 0:01:34.7]} 37. Nxd3 {[%clk 0:01:05.3]} 37... Rd4 {[%clk
0:01:34.7]} 38. Re3 {[%clk 0:01:05.3]} 38... g5 {[%clk 0:01:32.7]} 39. Kc3
{[%clk 0:01:01.6]} 39... Rc4+ {[%clk 0:01:31.7]} 40. Kb3 {[%clk 0:00:58.5]}
40... gxh4 {[%clk 0:01:31.1]} 41. gxh4 {[%clk 0:00:56.7]} 41... Rd4 {[%clk
0:01:30.9]} 42. Kc3 {[%clk 0:00:49.9]} 42... Rc4+ {[%clk 0:01:30.4]} 43. Kd2
{[%clk 0:00:48.3]} 43... Rd4 {[%clk 0:01:30.1]} 44. Rf3 {[%clk 0:00:48.9]} 44...
Bxd3 {[%clk 0:01:28.9]} 45. Kc3 {[%clk 0:00:27.1]} 45... Be2 {[%clk 0:01:06.9]}
46. Re3 {[%clk 0:00:27.1]} 46... Rxf4 {[%clk 0:01:04.2]} 47. Rxe2 {[%clk
0:00:27.4]} 47... Rxh4 {[%clk 0:01:04.1]} 48. Rg2 {[%clk 0:00:28.1]} 48... Kd7
{[%clk 0:00:46.1]} 49. Rd2+ {[%clk 0:00:25.3]} 49... Ke7 {[%clk 0:00:40.6]} 50.
Rg2 {[%clk 0:00:25.9]} 50... Rf4 {[%clk 0:00:37.2]} 51. Rg6 {[%clk 0:00:22.6]}
51... h5 {[%clk 0:00:25.3]} 52. Rh6 {[%clk 0:00:22.9]} 52... Kd7 {[%clk
0:00:23.2]} 53. Rxh5 {[%clk 0:00:21.4]} 53... Kc6 {[%clk 0:00:22.8]} 54. Rh7
{[%clk 0:00:18.5]} 54... a5 {[%clk 0:00:22.4]} 55. Rh8 {[%clk 0:00:16.5]} 55...
Re4 {[%clk 0:00:22.1]} 56. Rc8+ {[%clk 0:00:13.1]} 56... Kd7 {[%clk 0:00:20]}
57. Rb8 {[%clk 0:00:10.7]} 57... Kc7 {[%clk 0:00:20.4]} 58. Rh8 {[%clk
0:00:11.3]} 58... Rxe5 {[%clk 0:00:21]} 59. b4 {[%clk 0:00:10.6]} 59... Rc5+
{[%clk 0:00:21.9]} 60. bxc5 {[%clk 0:00:10.6]} 60... bxc5 {[%clk 0:00:22]} 61.
Kc4 {[%clk 0:00:10.8]} 61... Kd6 {[%clk 0:00:22]} 62. Rh5 {[%clk 0:00:11.2]}
62... e5 {[%clk 0:00:21.8]} 63. Rh6+ {[%clk 0:00:11.7]} 1-0

[Event "Late-Titled-Tuesday-Blitz-January-30-2024"]
[Site "Chess.com"]
[Date "2024.01.30"]
[Round "1"]
[White "Filipets"]
[Black "ChEsper99"]
[Result "1-0"]
[WhiteElo "2584"]
[BlackElo "2147"]
[TimeControl "180+1"]
[EndTime "14:08:02 PST"]
[Termination "Filipets won by resignation"]

1. c4 {[%clk 0:03:00.9]} 1... c5 {[%clk 0:02:40.8]} 2. Nc3 {[%clk 0:02:53.2]}
2... g6 {[%clk 0:02:24.4]} 3. g3 {[%clk 0:02:51.9]} 3... Bg7 {[%clk 0:02:24.4]}
4. Bg2 {[%clk 0:02:52.8]} 4... Nc6 {[%clk 0:02:24.7]} 5. Nf3 {[%clk 0:02:52.6]}
5... d6 {[%clk 0:02:24.5]} 6. O-O {[%clk 0:02:53.2]} 6... e5 {[%clk 0:02:23.6]}
7. Rb1 {[%clk 0:02:53.5]} 7... Be6 {[%clk 0:02:22.5]} 8. d3 {[%clk 0:02:52.7]}
8... Nge7 {[%clk 0:02:22]} 9. a3 {[%clk 0:02:50]} 9... a5 {[%clk 0:02:19.9]} 10.
Ne1 {[%clk 0:02:49.4]} 10... O-O {[%clk 0:02:17.5]} 11. Nc2 {[%clk 0:02:49.7]}
11... d5 {[%clk 0:02:01.6]} 12. b4 {[%clk 0:02:40.1]} 12... axb4 {[%clk
0:02:01.6]} 13. axb4 {[%clk 0:02:39.5]} 13... cxb4 {[%clk 0:01:56.7]} 14. Nxb4
{[%clk 0:02:40.4]} 14... dxc4 {[%clk 0:01:56.7]} 15. dxc4 {[%clk 0:02:29.1]}
15... Bxc4 {[%clk 0:01:39.2]} 16. Nxc6 {[%clk 0:02:09.9]} 16... bxc6 {[%clk
0:01:37.3]} 17. Bg5 {[%clk 0:02:05.2]} 17... f6 {[%clk 0:01:29.3]} 18. Be3
{[%clk 0:01:45.6]} 18... Nd5 {[%clk 0:01:28.9]} 19. Qc1 {[%clk 0:01:28.4]} 19...
Nxc3 {[%clk 0:01:13.2]} 20. Qxc3 {[%clk 0:01:29.3]} 20... Bd5 {[%clk 0:01:13.6]}
21. Rfd1 {[%clk 0:01:24.1]} 21... Qa5 {[%clk 0:01:11.2]} 22. Qxa5 {[%clk
0:01:16.1]} 22... Rxa5 {[%clk 0:01:07.2]} 23. Bb6 {[%clk 0:01:16.4]} 23... Ra6
{[%clk 0:00:59]} 24. Bxd5+ {[%clk 0:01:04.3]} 24... cxd5 {[%clk 0:00:59.9]} 25.
Rxd5 {[%clk 0:01:04.9]} 25... Rb8 {[%clk 0:00:58.8]} 26. Rd8+ {[%clk 0:01:05.2]}
26... Rxd8 {[%clk 0:00:57.4]} 27. Bxd8 {[%clk 0:01:06.1]} 27... Rd6 {[%clk
0:00:51.6]} 28. Bc7 {[%clk 0:01:04]} 28... Rd7 {[%clk 0:00:48.5]} 29. Ba5 {[%clk
0:01:01.4]} 29... Bf8 {[%clk 0:00:45.9]} 30. e3 {[%clk 0:01:01.3]} 30... Kf7
{[%clk 0:00:43.4]} 31. Kg2 {[%clk 0:01:01.2]} 31... Ke6 {[%clk 0:00:43.6]} 32.
Kf3 {[%clk 0:01:01.5]} 32... f5 {[%clk 0:00:42.4]} 33. Rb6+ {[%clk 0:01:00.8]}
33... Rd6 {[%clk 0:00:41.7]} 34. Rb7 {[%clk 0:00:58.4]} 34... Rd7 {[%clk
0:00:41.8]} 35. Rb8 {[%clk 0:00:58.1]} 35... e4+ {[%clk 0:00:41.2]} 36. Kg2
{[%clk 0:00:56.6]} 36... Bd6 {[%clk 0:00:40]} 37. Re8+ {[%clk 0:00:55.5]} 37...
Kf7 {[%clk 0:00:39.2]} 38. Rh8 {[%clk 0:00:55.2]} 38... Ke6 {[%clk 0:00:38.9]}
39. Bc3 {[%clk 0:00:53.7]} 39... Be5 {[%clk 0:00:37.9]} 40. Re8+ {[%clk
0:00:53.4]} 40... Kf7 {[%clk 0:00:25.9]} 41. Rxe5 {[%clk 0:00:52.8]} 41... Rb7
{[%clk 0:00:25.6]} 42. h4 {[%clk 0:00:50.3]} 42... h5 {[%clk 0:00:22.1]} 43. Bd4
{[%clk 0:00:49]} 43... Rd7 {[%clk 0:00:21.5]} 44. Ra5 {[%clk 0:00:49.3]} 44...
Rd6 {[%clk 0:00:21.3]} 45. Ra7+ {[%clk 0:00:48.1]} 45... Ke6 {[%clk 0:00:21]}
46. Rb7 {[%clk 0:00:48.4]} 46... Kd5 {[%clk 0:00:20.8]} 47. Rc7 {[%clk
0:00:46.8]} 47... Ke6 {[%clk 0:00:19.7]} 48. Kf1 {[%clk 0:00:42.2]} 48... Ra6
{[%clk 0:00:18.7]} 49. Ra7 {[%clk 0:00:41.6]} 49... Rc6 {[%clk 0:00:18.1]} 50.
Rb7 {[%clk 0:00:38.9]} 50... Kd5 {[%clk 0:00:18.2]} 51. Rg7 {[%clk 0:00:33.8]}
51... Kc4 {[%clk 0:00:17.8]} 52. Be5 {[%clk 0:00:31]} 52... Kd3 {[%clk
0:00:17.6]} 53. Rd7+ {[%clk 0:00:31.6]} 53... Kc2 {[%clk 0:00:13.2]} 54. Rc7
{[%clk 0:00:32]} 54... Rxc7 {[%clk 0:00:13.8]} 55. Bxc7 {[%clk 0:00:32.9]} 55...
Kd1 {[%clk 0:00:13.1]} 56. Ba5 {[%clk 0:00:32.1]} 56... Kc2 {[%clk 0:00:13.3]}
57. Ke2 {[%clk 0:00:32.8]} 57... Kb3 {[%clk 0:00:13.6]} 58. Kd2 {[%clk
0:00:33.3]} 58... Kc4 {[%clk 0:00:14]} 59. Kc2 {[%clk 0:00:32.8]} 59... Kb5
{[%clk 0:00:13.8]} 60. Bd8 {[%clk 0:00:33.3]} 60... Kc4 {[%clk 0:00:14.4]} 61.
Be7 {[%clk 0:00:33]} 61... Kd5 {[%clk 0:00:13.6]} 62. Kc3 {[%clk 0:00:33.6]}
62... Ke6 {[%clk 0:00:14.1]} 63. Bg5 {[%clk 0:00:33]} 63... Kd5 {[%clk
0:00:14.7]} 64. Bf4 {[%clk 0:00:33.3]} 64... Kc6 {[%clk 0:00:15.4]} 65. Kd4
{[%clk 0:00:33.6]} 65... Kd7 {[%clk 0:00:16.3]} 66. Ke5 {[%clk 0:00:34.2]} 66...
Ke7 {[%clk 0:00:17.2]} 67. Bg5+ {[%clk 0:00:34.7]} 67... Kf7 {[%clk 0:00:18.1]}
68. Kd6 {[%clk 0:00:34.6]} 68... Kg7 {[%clk 0:00:18]} 69. Ke6 {[%clk 0:00:35.1]}
69... Kh7 {[%clk 0:00:18]} 70. Kf6 {[%clk 0:00:35.5]} 1-0